lending/lending_fUSD_20240110
["ID","MTS","AMOUNT","RATE_DAILY","PERIOD"]
[311014870,1704870647378,-500.0,0.00030136,2]
[311014873,1704870647387,-500.0,0.00030136,2]
[311014875,1704870647396,-1693.64,0.00030136,2]
[311014877,1704870647405,-812.2,0.00030136,2]
[311014878,1704870647415,-500.0,0.00030136,2]
[311014881,1704870647424,-426.2159396,0.00030136,2]
[311014882,1704870647434,-500.0,0.00030136,2]
[311014884,1704870647443,-826.62,0.00030136,2]
[311014886,1704870647452,-559.37,0.00030136,2]
[311014888,1704870647461,-976.26,0.00030136,2]
[311014890,1704870647471,-500.0,0.00030136,2]
[311014892,1704870647480,-500.0,0.00030136,2]
[311014894,1704870647490,-500.0,0.00030136,2]
[311014897,1704870647499,-500.0,0.00030136,2]
[311014899,1704870647509,-1164.12,0.00030136,2]
[311014901,1704870647518,-500.0,0.00030136,2]
[311014903,1704870647528,-500.0,0.00030136,2]
[311014905,1704870647537,-1941.26,0.00030136,2]
[311014907,1704870647547,-1410.97,0.00030136,2]
[311014919,1704870647649,-1249.31,0.00030136,2]
[311014921,1704870647658,-500.0,0.00030136,2]
[311014923,1704870647668,-500.0,0.00030136,2]
[311014925,1704870647677,-874.52,0.00030136,2]
[311014927,1704870647685,-988.84,0.00030136,2]
[311014929,1704870647694,-1028.89,0.00030136,2]
[311014931,1704870647703,-500.0,0.00030136,2]
[311014933,1704870647712,-1131.15,0.00030136,2]
[311014935,1704870647721,-500.0,0.00030136,2]
[311014937,1704870647731,-500.0,0.00030136,2]
[311014939,1704870647740,-500.0,0.00030136,2]
[311014941,1704870647751,-500.0,0.00030136,2]
[311014943,1704870647761,-500.0,0.00030136,2]
[311014945,1704870647770,-500.0,0.00030136,2]
[311014947,1704870647780,-1427.5,0.00030136,2]
[311014949,1704870647789,-857.64,0.00030136,2]
[311014951,1704870647799,-500.0,0.00030136,2]
[311014953,1704870647809,-1098.02,0.00030136,2]
[311014956,1704870647819,-1340.78,0.00030136,2]
[311014957,1704870647828,-500.0,0.00030136,2]
[311014960,1704870647838,-1085.72,0.00030136,2]
[311014962,1704870647847,-629.28,0.00030136,2]
[311014963,1704870647857,-500.0,0.00030136,2]
[311014966,1704870647867,-500.0,0.00030136,2]
[311014968,1704870647877,-500.0,0.00030136,2]
[311014969,1704870647886,-895.59,0.00030136,2]
[311014971,1704870647896,-500.0,0.00030136,2]
[311014974,1704870647905,-500.0,0.00030136,2]
[311014976,1704870647915,-1142.08,0.00030136,2]
[311014977,1704870647924,-535.67,0.00030136,2]
[311014980,1704870647934,-1133.51,0.00030136,2]
[311014981,1704870647943,-500.0,0.00030136,2]
[311014983,1704870647952,-500.0,0.00030136,2]
[311014986,1704870647962,-500.0,0.00030136,2]
[311014988,1704870647971,-517.51,0.00030136,2]
[311014990,1704870647980,-1202.45,0.00030136,2]
[311014991,1704870647990,-500.0,0.00030136,2]
[311014992,1704870647999,-500.0,0.00030136,2]
[311014993,1704870648008,-500.0,0.00030136,2]
[311014994,1704870648020,-502.34,0.00030136,2]
[311014995,1704870648029,-500.0,0.00030136,2]
[311014996,1704870648038,-713.57,0.00030136,2]
[311014997,1704870648046,-500.0,0.00030136,2]
[311014998,1704870648055,-500.0,0.00030136,2]
[311014999,1704870648064,-500.0,0.00030136,2]
[311015000,1704870648074,-1396.57,0.00030136,2]
[311015001,1704870648083,-500.0,0.00030136,2]
[311015003,1704870648093,-942.14,0.00030136,2]
[311015004,1704870648102,-500.0,0.00030136,2]
[311015006,1704870648112,-500.0,0.00030136,2]
[311015008,1704870648121,-512.14,0.00030136,2]
[311015011,1704870648130,-500.0,0.00030136,2]
[311015012,1704870648139,-1618.37,0.00030136,2]
[311015015,1704870648149,-578.78,0.00030136,2]
[311015016,1704870648159,-597.19,0.00030136,2]
[311015019,1704870648168,-500.0,0.00030136,2]
[311015021,1704870648177,-507.02215656,0.00030136,2]
[311015022,1704870648187,-500.0,0.00030136,2]
[311015024,1704870648196,-1195.94,0.00030136,2]
[311015026,1704870648205,-500.0,0.00030136,2]
[311015028,1704870648215,-500.0,0.00030136,2]
[311015030,1704870648224,-940.39,0.00030136,2]
[311015032,1704870648233,-1155.33,0.00030136,2]
[311015035,1704870648243,-936.99,0.00030136,2]
[311015037,1704870648253,-500.0,0.00030136,2]
[311015038,1704870648262,-1463.57,0.00030136,2]
[311015040,1704870648272,-787.95,0.00030136,2]
[311015043,1704870648281,-500.0,0.00030136,2]
[311015044,1704870648291,-1392.1,0.00030136,2]
[311015046,1704870648300,-500.0,0.00030136,2]
[311015048,1704870648310,-500.0,0.00030136,2]
[311015051,1704870648321,-500.0,0.00030136,2]
[311015053,1704870648331,-500.0,0.00030136,2]
[311015055,1704870648341,-776.45,0.00030136,2]
[311015056,1704870648351,-1160.43,0.00030136,2]
[311015058,1704870648360,-500.0,0.00030136,2]
[311015060,1704870648369,-500.0,0.00030136,2]
[311015062,1704870648378,-500.0,0.00030136,2]
[311015064,1704870648387,-500.0,0.00030136,2]
[311015066,1704870648396,-1672.4,0.00030136,2]
[311015068,1704870648405,-500.0,0.00030136,2]
[311015070,1704870648415,-500.0,0.00030136,2]
[311015072,1704870648424,-500.0,0.00030136,2]
[311015074,1704870648433,-500.0,0.00030136,2]
[311015076,1704870648442,-500.0,0.00030136,2]
[311015078,1704870648451,-931.39,0.00030136,2]
[311015080,1704870648460,-500.0,0.00030136,2]
[311015082,1704870648470,-500.0,0.00030136,2]
[311015084,1704870648479,-500.0,0.00030136,2]
[311015086,1704870648488,-500.0,0.00030136,2]
[311015088,1704870648498,-587.55,0.00030136,2]
[311015090,1704870648508,-1058.46,0.00030136,2]
[311015092,1704870648517,-500.0,0.00030136,2]
[311015094,1704870648527,-751.25,0.00030136,2]
[311015097,1704870648537,-500.0,0.00030136,2]
[311015098,1704870648546,-631.49,0.00030136,2]
[311015100,1704870648556,-500.0,0.00030136,2]
[311015102,1704870648565,-500.0,0.00030136,2]
[311015104,1704870648576,-500.0,0.00030136,2]
[311015107,1704870648586,-748.25,0.00030136,2]
[311015109,1704870648596,-1607.68,0.00030136,2]
[311015111,1704870648605,-500.0,0.00030136,2]
[311015112,1704870648614,-500.0,0.00030136,2]
[311015114,1704870648623,-500.0,0.00030136,2]
[311015117,1704870648633,-845.11,0.00030136,2]
[311015118,1704870648642,-500.0,0.00030136,2]
[311015120,1704870648651,-500.0,0.00030136,2]
[311015122,1704870648660,-500.0,0.00030136,2]
[311015124,1704870648669,-2348.93,0.00030136,2]
[311015126,1704870648678,-500.0,0.00030136,2]
[311015129,1704870648688,-500.0,0.00030136,2]
[311015131,1704870648697,-500.0,0.00030136,2]
[311015133,1704870648706,-500.0,0.00030136,2]
[311015134,1704870648715,-500.0,0.00030136,2]
[311015136,1704870648724,-500.0,0.00030136,2]
[311015138,1704870648733,-500.0,0.00030136,2]
[311015141,1704870648743,-500.0,0.00030136,2]
[311015143,1704870648752,-500.0,0.00030136,2]
[311015145,1704870648761,-500.0,0.00030136,2]
[311015147,1704870648770,-500.0,0.00030136,2]
[311015149,1704870648779,-512.4488127,0.00030136,2]
[311015151,1704870648788,-500.0,0.00030136,2]
[311015153,1704870648797,-748.0,0.00030136,2]
[311015155,1704870648805,-500.0,0.00030136,2]
[311015157,1704870648815,-500.0,0.00030136,2]
[311015159,1704870648826,-500.0,0.00030136,2]
[311015161,1704870648834,-500.0,0.00030136,2]
[311015162,1704870648843,-1163.69,0.00030136,2]
[311015164,1704870648852,-500.0,0.00030136,2]
[311015166,1704870648861,-2564.16,0.00030136,2]
[311015169,1704870648871,-1165.53,0.00030136,2]
[311015171,1704870648880,-163.17751806,0.00030136,2]
[311015173,1704870648889,-500.0,0.00030136,2]
[311015174,1704870648899,-1821.41,0.00030136,2]
[311015177,1704870648908,-500.0,0.00030136,2]
[311015179,1704870648917,-500.0,0.00030136,2]
[311015181,1704870648926,-836.83,0.00030136,2]
[311015183,1704870648935,-500.0,0.00030136,2]
[311015185,1704870648944,-500.0,0.00030136,2]
[311015186,1704870648953,-500.0,0.00030136,2]
[311015188,1704870648964,-500.0,0.00030136,2]
[311015190,1704870648972,-500.0,0.00030136,2]
[311015192,1704870648981,-1023.77,0.00030136,2]
[311015194,1704870648991,-1532.02,0.00030136,2]
[311015197,1704870649000,-500.0,0.00030136,2]
[311015199,1704870649009,-500.0,0.00030136,2]
[311015201,1704870649018,-500.0,0.00030136,2]
[311015202,1704870649030,-500.0,0.00030136,2]
[311015203,1704870649039,-510.81012518,0.00030136,2]
[311015204,1704870649049,-1225.57,0.00030136,2]
[311015205,1704870649058,-500.0,0.00030136,2]
[311015206,1704870649069,-500.0,0.00030136,2]
[311015207,1704870649078,-596.33,0.00030136,2]
[311015208,1704870649087,-1263.79,0.00030136,2]
[311015209,1704870649096,-500.0,0.00030136,2]
[311015210,1704870649105,-984.98,0.00030136,2]
[311015211,1704870649114,-575.68,0.00030136,2]
[311015212,1704870649124,-500.0,0.00030136,2]
[311015213,1704870649134,-500.0,0.00030136,2]
[311015214,1704870649143,-500.0,0.00030136,2]
[311015216,1704870649152,-1402.44,0.00030136,2]
[311015217,1704870649162,-879.23,0.00030136,2]
[311015219,1704870649171,-500.0,0.00030136,2]
[311015221,1704870649180,-1532.41,0.00030136,2]
[311015223,1704870649189,-500.0,0.00030136,2]
[311015225,1704870649198,-500.0,0.00030136,2]
[311015227,1704870649207,-500.0,0.00030136,2]
[311015229,1704870649217,-500.0,0.00030136,2]
[311015231,1704870649227,-803.22,0.00030136,2]
[311015233,1704870649236,-541.91307752,0.00030136,2]
[311015235,1704870649245,-1474.28,0.00030136,2]
[311015237,1704870649254,-500.0,0.00030136,2]
[311015239,1704870649263,-1488.19,0.00030136,2]
[311015241,1704870649272,-513.43,0.00030136,2]
[311015243,1704870649281,-500.0,0.00030136,2]
[311015245,1704870649290,-500.0,0.00030136,2]
[311015247,1704870649300,-500.0,0.00030136,2]
[311015249,1704870649309,-500.0,0.00030136,2]
[311015251,1704870649320,-500.0,0.00030136,2]
[311015253,1704870649330,-387.64199738,0.00030136,2]
[311015255,1704870649343,-500.0,0.00030136,2]
[311015257,1704870649352,-501.84,0.00030136,2]
[311015259,1704870649361,-381.98567362,0.00030136,2]
[311015261,1704870649371,-500.0,0.00030136,2]
[311015263,1704870649381,-500.0,0.00030136,2]
[311015265,1704870649390,-500.0,0.00030136,2]
[311015267,1704870649399,-162.72972012,0.00030136,2]
[311015269,1704870649409,-500.0,0.00030136,2]
[311015271,1704870649418,-852.26,0.00030136,2]
[311015273,1704870649428,-500.0,0.00030136,2]
[311015275,1704870649437,-500.0,0.00030136,2]
[311015277,1704870649447,-1000.0,0.00030136,7]
[311015279,1704870649456,-500.0,0.00030136,2]
[311015281,1704870649465,-556.21764252,0.00030136,2]
[311015283,1704870649474,-500.0,0.00030136,2]
[311015285,1704870649483,-500.0,0.00030136,2]
[311015288,1704870649499,-500.0,0.00030136,2]
[311015290,1704870649509,-538.82,0.00030136,2]
[311015292,1704870649518,-500.0,0.00030136,2]
[311015294,1704870649528,-604.31,0.00030136,2]
[311015296,1704870649537,-500.0,0.00030136,2]
[311015298,1704870649547,-500.0,0.00030136,2]
[311015300,1704870649558,-500.0,0.00030136,2]
[311015302,1704870649567,-500.00000001,0.00030136,2]
[311015304,1704870649578,-500.0,0.00030136,2]
[311015306,1704870649588,-500.0,0.00030136,2]
[311015308,1704870649598,-500.0,0.00030136,2]
[311015310,1704870649607,-500.0,0.00030136,2]
[311015312,1704870649617,-500.0,0.00030136,2]
[311015314,1704870649626,-1213.21,0.00030136,2]
[311015316,1704870649636,-500.0,0.00030136,2]
[311015318,1704870649646,-972.65,0.00030136,2]
[311015320,1704870649656,-501.42338041,0.00030136,2]
[311015322,1704870649665,-1426.16,0.00030136,2]
[311015324,1704870649674,-500.0,0.00030136,2]
[311015326,1704870649684,-500.0,0.00030136,2]
[311015328,1704870649693,-500.0,0.00030136,2]
[311015331,1704870649703,-821.5,0.00030136,2]
[311015333,1704870649712,-500.0,0.00030136,2]
[311015335,1704870649722,-500.0,0.00030136,2]
[311015337,1704870649731,-504.59604335,0.00030136,2]
[311015339,1704870649742,-500.0,0.00030136,2]
[311015341,1704870649753,-500.0,0.00030136,2]
[311015343,1704870649762,-647.7,0.00030136,2]
[311015345,1704870649771,-1750.0,0.00030136,2]
[311015347,1704870649781,-500.0,0.00030136,2]
[311015349,1704870649790,-500.0,0.00030136,2]
[311015351,1704870649800,-688.63,0.00030136,2]
[311015353,1704870649810,-1578.94,0.00030136,2]
[311015355,1704870649819,-500.0,0.00030136,2]
[311015357,1704870649830,-500.0,0.00030136,2]
[311015359,1704870649839,-1439.57,0.00030136,2]
[311015361,1704870649848,-1054.35,0.00030136,2]
[311015363,1704870649857,-1092.24,0.00030136,2]
[311015365,1704870649867,-500.0,0.00030136,2]
[311015367,1704870649877,-500.0,0.00030136,2]
[311015369,1704870649887,-500.0,0.00030136,2]
[311015371,1704870649897,-944.54,0.00030136,2]
[311015373,1704870649907,-500.0,0.00030136,2]
[311015375,1704870649917,-500.0,0.00030136,2]
[311015377,1704870649927,-500.0,0.00030136,2]
[311015380,1704870649939,-995.94,0.00030136,2]
[311015382,1704870649948,-964.48,0.00030136,2]
[311015384,1704870649962,-835.37,0.00030136,2]
[311015386,1704870649971,-500.0,0.00030136,2]
[311015388,1704870649983,-500.0,0.00030136,2]
[311015390,1704870649997,-500.0,0.00030136,2]
[311015392,1704870650006,-500.0,0.00030136,2]
[311015394,1704870650015,-1430.65,0.00030136,2]
[311015396,1704870650025,-592.8,0.00030136,2]
[311015398,1704870650035,-1120.0,0.00030136,2]
[311015400,1704870650045,-500.0,0.00030136,2]
[311015402,1704870650054,-886.78,0.00030136,2]
[311015404,1704870650064,-500.0,0.00030136,2]
[311015406,1704870650075,-500.0,0.00030136,2]
[311015408,1704870650086,-500.0,0.00030136,2]
[311015410,1704870650096,-500.0,0.00030136,2]
[311015412,1704870650106,-517.49714615,0.00030136,2]
[311015414,1704870650115,-500.0,0.00030136,2]
[311015416,1704870650125,-500.0,0.00030136,2]
[311015418,1704870650135,-500.0,0.00030136,2]
[311015420,1704870650144,-500.0,0.00030136,2]
[311015422,1704870650154,-500.0,0.00030136,2]
[311015424,1704870650163,-500.0,0.00030136,2]
[311015426,1704870650172,-1906.5,0.00030136,2]
[311015428,1704870650181,-1321.7,0.00030136,2]
[311015430,1704870650191,-943.16,0.00030136,2]
[311015432,1704870650200,-1162.59,0.00030136,2]
[311015434,1704870650209,-501.24124426,0.00030136,2]
[311015436,1704870650218,-1062.9,0.00030136,2]
[311015438,1704870650227,-1192.45,0.00030136,2]
[311015440,1704870650237,-1007.7,0.00030136,2]
[311015442,1704870650248,-1028.18,0.00030136,2]
[311015444,1704870650258,-500.0,0.00030136,2]
[311015445,1704870650270,-500.0,0.00030136,2]
[311015446,1704870650281,-500.0,0.00030136,2]
[311015447,1704870650291,-500.0,0.00030136,2]
[311015448,1704870650302,-500.0,0.00030136,2]
[311015449,1704870650312,-500.0,0.00030136,2]
[311015450,1704870650324,-500.0,0.00030136,2]
[311015451,1704870650333,-500.0,0.00030136,2]
[311015452,1704870650343,-500.0,0.00030136,2]
[311015453,1704870650352,-500.0,0.00030136,2]
[311015454,1704870650361,-500.0,0.00030136,2]
[311015456,1704870650370,-686.98,0.00030136,2]
[311015458,1704870650379,-500.0,0.00030136,2]
[311015460,1704870650388,-500.0,0.00030136,2]
[311015462,1704870650397,-500.0,0.00030136,2]
[311015464,1704870650406,-500.0,0.00030136,2]
[311015466,1704870650415,-294.6348777,0.00030136,2]
[311015468,1704870650424,-500.0,0.00030136,2]
[311015470,1704870650433,-500.0,0.00030136,2]
[311015472,1704870650443,-500.0,0.00030136,2]
[311015474,1704870650452,-2638.47,0.00030136,2]
[311015476,1704870650462,-500.0,0.00030136,7]
[311015478,1704870650473,-500.0,0.00030136,2]
[311015480,1704870650483,-1168.36,0.00030136,2]
[311015482,1704870650493,-1696.15,0.00030136,2]
[311015484,1704870650502,-500.0,0.00030136,2]
[311015486,1704870650512,-314.09858747,0.00030136,2]
[311015488,1704870650521,-636.47,0.00030136,2]
[311015489,1704870650531,-500.0,0.00030136,2]
[311015491,1704870650540,-975.22,0.00030136,2]
[311015493,1704870650549,-603.27,0.00030136,2]
[311015495,1704870650558,-500.0,0.00030136,2]
[311015497,1704870650568,-500.0,0.00030136,2]
[311015499,1704870650577,-317.34,0.00030136,2]
[311015501,1704870650586,-500.0,0.00030136,2]
[311015503,1704870650595,-500.0,0.00030136,2]
[311015505,1704870650604,-500.0,0.00030136,2]
[311015507,1704870650613,-500.0,0.00030136,2]
[311015509,1704870650622,-665.28,0.00030136,2]
[311015511,1704870650632,-500.0,0.00030136,2]
[311015513,1704870650641,-500.0,0.00030136,2]
[311015515,1704870650650,-500.0,0.00030136,2]
[311015517,1704870650660,-548.3,0.00030136,2]
[311015519,1704870650669,-500.0,0.00030136,2]
[311015521,1704870650678,-182.87542209,0.00030136,2]
[311015523,1704870650688,-500.0,0.00030136,2]
[311015525,1704870650697,-500.0,0.00030136,2]
[311015527,1704870650706,-500.0,0.00030136,2]
[311015529,1704870650715,-500.0,0.00030136,2]
[311015531,1704870650725,-500.0,0.00030136,2]
[311015533,1704870650734,-500.0,0.00030136,2]
[311015535,1704870650744,-715.36,0.00030136,2]
[311015537,1704870650753,-500.0,0.00030136,2]
[311015539,1704870650763,-500.0,0.00030136,2]
[311015541,1704870650772,-500.0,0.00030136,2]
[311015543,1704870650780,-1496.17,0.00030136,2]
[311015545,1704870650789,-500.0,0.00030136,2]
[311015547,1704870650799,-500.0,0.00030136,2]
[311015549,1704870650808,-1519.77,0.00030136,2]
[311015551,1704870650817,-500.0,0.00030136,2]
[311015553,1704870650827,-500.0,0.00030136,2]
[311015555,1704870650835,-500.0,0.00030136,2]
[311015557,1704870650844,-1382.23,0.00030136,2]
[311015559,1704870650854,-500.0,0.00030136,2]
[311015561,1704870650864,-500.0,0.00030136,2]
[311015563,1704870650872,-1742.51,0.00030136,2]
[311015565,1704870650882,-500.0,0.00030136,2]
[311015567,1704870650891,-502.40490615,0.00030136,2]
[311015569,1704870650900,-603.4,0.00030136,2]
[311015571,1704870650909,-500.0,0.00030136,2]
[311015573,1704870650919,-500.0,0.00030136,2]
[311015575,1704870650928,-739.95,0.00030136,2]
[311015577,1704870650938,-500.0,0.00030136,2]
[311015579,1704870650947,-500.0,0.00030136,2]
[311015581,1704870650957,-500.0,0.00030136,2]
[311015583,1704870650966,-500.0,0.00030136,2]
[311015585,1704870650975,-500.0,0.00030136,2]
[311015587,1704870650984,-500.0,0.00030136,2]
[311015589,1704870650993,-500.0,0.00030136,2]
[311015591,1704870651003,-631.89,0.00030136,2]
[311015593,1704870651012,-948.83,0.00030136,2]
[311015595,1704870651021,-1398.97,0.00030136,2]
[311015597,1704870651030,-500.0,0.00030136,2]
[311015599,1704870651040,-500.0,0.00030136,30]
[311015601,1704870651049,-500.0,0.00030136,2]
[311015603,1704870651058,-598.83,0.00030136,2]
[311015605,1704870651067,-500.0,0.00030136,2]
[311015607,1704870651078,-171.60930535,0.00030136,2]
[311015609,1704870651087,-500.0,0.00030136,2]
[311015611,1704870651096,-500.0,0.00030136,2]
[311015613,1704870651106,-1659.73,0.00030136,2]
[311015615,1704870651115,-500.0,0.00030136,2]
[311015616,1704870651124,-639.56,0.00030136,2]
[311015618,1704870651134,-500.0,0.00030136,2]
[311015621,1704870651143,-500.0,0.00030136,2]
[311015622,1704870651153,-507.63621354,0.00030136,2]
[311015624,1704870651162,-694.61,0.00030136,2]
[311015626,1704870651172,-500.0,0.00030136,2]
[311015628,1704870651182,-2851.48,0.00030136,2]
[311015631,1704870651191,-500.0,0.00030136,2]
[311015633,1704870651201,-500.0,0.00030136,2]
[311015635,1704870651210,-500.0,0.00030136,2]
[311015637,1704870651219,-764.78,0.00030136,2]
[311015638,1704870651228,-500.0,0.00030136,2]
[311015640,1704870651237,-2312.4,0.00030136,2]
[311015642,1704870651247,-500.0,0.00030136,2]
[311015645,1704870651257,-987.87,0.00030136,2]
[311015646,1704870651266,-500.0,0.00030136,2]
[311015647,1704870651275,-500.0,0.00030136,2]
[311015648,1704870651285,-500.0,0.00030136,2]
[311015649,1704870651294,-1425.98,0.00030136,2]
[311015650,1704870651303,-702.43,0.00030136,2]
[311015651,1704870651313,-500.0,0.00030136,2]
[311015652,1704870651326,-500.0,0.00030136,2]
[311015653,1704870651336,-1488.64,0.00030136,2]
[311015654,1704870651345,-880.8,0.00030136,2]
[311015655,1704870651355,-500.0,0.00030136,2]
[311015656,1704870651366,-500.0,0.00030136,2]
[311015657,1704870651375,-1051.87,0.00030136,2]
[311015658,1704870651385,-715.7,0.00030136,2]
[311015660,1704870651394,-500.0,0.00030136,2]
[311015662,1704870651406,-1289.38,0.00030136,2]
[311015663,1704870651416,-500.0,0.00030136,2]
[311015664,1704870651425,-1468.36,0.00030136,2]
[311015665,1704870651434,-500.0,0.00030136,2]
[311015666,1704870651444,-845.46,0.00030136,2]
[311015667,1704870651453,-500.0,0.00030136,2]
[311015669,1704870651463,-1124.15620236,0.00030136,2]
[311015670,1704870651472,-500.0,0.00030136,2]
[311015673,1704870651482,-563.62,0.00030136,2]
[311015674,1704870651491,-765.44,0.00030136,2]
[311015675,1704870651501,-509.30436963,0.00030136,2]
[311015676,1704870651511,-500.0,0.00030136,2]
[311015677,1704870651520,-506.64322231,0.00030136,2]
[311015678,1704870651530,-500.0,0.00030136,2]
[311015679,1704870651540,-500.0,0.00030136,2]
[311015680,1704870651551,-1036.85,0.00030136,2]
[311015682,1704870651560,-500.0,0.00030136,2]
[311015683,1704870651571,-500.0,0.00030136,2]
[311015685,1704870651581,-500.0,0.00030136,2]
[311015686,1704870651590,-1277.99,0.00030136,2]
[311015687,1704870651600,-500.0,0.00030136,2]
[311015688,1704870651610,-536.68,0.00030136,2]
[311015689,1704870651619,-500.0,0.00030136,2]
[311015690,1704870651629,-952.34,0.00030136,2]
[311015691,1704870651638,-654.11,0.00030136,2]
[311015692,1704870651648,-500.0,0.00030136,2]
[311015693,1704870651658,-500.0,0.00030136,2]
[311015694,1704870651667,-500.0,0.00030136,2]
[311015695,1704870651677,-500.0,0.00030136,2]
[311015696,1704870651687,-500.0,0.00030136,2]
[311015697,1704870651696,-898.09,0.00030136,2]
[311015698,1704870651706,-500.0,0.00030136,2]
[311015699,1704870651717,-1181.06,0.00030136,2]
[311015700,1704870651727,-695.04,0.00030136,2]
[311015701,1704870651737,-500.0,0.00030136,2]
[311015702,1704870651747,-501.18,0.00030136,2]
[311015703,1704870651757,-500.0,0.00030136,2]
[311015704,1704870651768,-500.0,0.00030136,2]
[311015705,1704870651777,-1579.48,0.00030136,2]
[311015706,1704870651787,-500.0,0.00030136,2]
[311015707,1704870651796,-559.26,0.00030136,2]
[311015708,1704870651806,-500.0,0.00030136,2]
[311015709,1704870651817,-1391.88,0.00030136,2]
[311015710,1704870651828,-500.0,0.00030136,2]
[311015711,1704870651837,-503.30849447,0.00030136,2]
[311015712,1704870651848,-500.0,0.00030136,2]
[311015713,1704870651857,-500.0,0.00030136,2]
[311015714,1704870651867,-500.0,0.00030136,2]
[311015715,1704870651876,-1058.3,0.00030136,2]
[311015716,1704870651886,-500.0,0.00030136,2]
[311015717,1704870651896,-1041.55,0.00030136,2]
[311015718,1704870651906,-500.0,0.00030136,2]
[311015719,1704870651915,-2060.27,0.00030136,2]
[311015720,1704870651925,-1053.05,0.00030136,2]
[311015721,1704870651935,-632.16,0.00030136,2]
[311015722,1704870651946,-500.0,0.00030136,2]
[311015723,1704870651956,-500.0,0.00030136,2]
[311015724,1704870651966,-500.0,0.00030136,2]
[311015725,1704870651975,-500.0,0.00030136,2]
[311015726,1704870651985,-500.0,0.00030136,2]
[311015727,1704870651994,-2547.44,0.00030136,2]
[311015728,1704870652005,-959.27,0.00030136,2]
[311015729,1704870652014,-500.0,0.00030136,2]
[311015730,1704870652024,-1651.15,0.00030136,2]
[311015731,1704870652036,-500.0,0.00030136,2]
[311015732,1704870652046,-500.0,0.00030136,2]
[311015733,1704870652055,-500.0,0.00030136,2]
[311015734,1704870652065,-500.0,0.00030136,2]
[311015735,1704870652076,-500.0,0.00030136,2]
[311015736,1704870652086,-500.0,0.00030136,2]
[311015737,1704870652095,-500.0,0.00030136,2]
[311015738,1704870652106,-500.0,0.00030136,2]
[311015739,1704870652116,-500.0,0.00030136,2]
[311015740,1704870652126,-1891.65,0.00030136,2]
[311015741,1704870652136,-686.52,0.00030136,2]
[311015742,1704870652146,-2155.13,0.00030136,2]
[311015743,1704870652155,-535.15769853,0.00030136,2]
[311015744,1704870652165,-500.0,0.00030136,2]
[311015745,1704870652175,-1987.61,0.00030136,2]
[311015746,1704870652185,-1522.98,0.00030136,2]
[311015747,1704870652195,-3891.23,0.00030136,2]
[311015748,1704870652205,-500.0,0.00030136,2]
[311015749,1704870652215,-1932.68,0.00030136,2]
[311015750,1704870652225,-1396.39,0.00030136,2]
[311015751,1704870652235,-759.12,0.00030136,2]
[311015752,1704870652244,-500.0,0.00030136,2]
[311015753,1704870652254,-500.0,0.00030136,2]